[Event "*** Titled Tuesday Blitz"]
[Site "Chess.com"]
[Date "2019.12.03"]
[Round "7"]
[White "Leonid_Starozhilov"]
[Black "TigrVShlyape"]
[Result "0-1"]
[WhiteElo "2669"]
[BlackElo "2844"]
[TimeControl "180+2"]
[EndTime "14:34:02 PST"]
[Termination "TigrVShlyape won on time"]

1. Nf3 {[%clk 0:03:01.9]} 1... Nf6 {[%clk 0:02:59.8]} 2. g3 {[%clk 0:03:02.9]}
2... g6 {[%clk 0:02:58.4]} 3. Bg2 {[%clk 0:03:04.8]} 3... Bg7 {[%clk 0:02:59.7]}
4. O-O {[%clk 0:03:06.7]} 4... O-O {[%clk 0:03:00.9]} 5. d3 {[%clk 0:03:08.3]}
5... d5 {[%clk 0:03:01.6]} 6. c3 {[%clk 0:03:07.2]} 6... b6 {[%clk 0:03:01.9]}
7. Bf4 {[%clk 0:03:07.4]} 7... Bb7 {[%clk 0:03:02.6]} 8. d4 {[%clk 0:03:08.7]}
8... c5 {[%clk 0:03:01.2]} 9. Ne5 {[%clk 0:03:08.9]} 9... Nbd7 {[%clk
0:02:59.8]} 10. Nd2 {[%clk 0:03:09.7]} 10... e6 {[%clk 0:03:00.5]} 11. Ndf3
{[%clk 0:03:07.7]} 11... Qe7 {[%clk 0:03:01.4]} 12. Bg5 {[%clk 0:03:00]} 12...
h6 {[%clk 0:03:00.7]} 13. Nxd7 {[%clk 0:03:01]} 13... Qxd7 {[%clk 0:03:01.6]}
14. Ne5 {[%clk 0:03:01.6]} 14... Qe7 {[%clk 0:03:02.6]} 15. Bf4 {[%clk
0:02:51.9]} 15... Ne4 {[%clk 0:03:01.7]} 16. f3 {[%clk 0:02:28.4]} 16... Nd6
{[%clk 0:03:02.1]} 17. Qc1 {[%clk 0:02:16]} 17... Kh7 {[%clk 0:03:02.3]} 18. Be3
{[%clk 0:01:58.1]} 18... Rac8 {[%clk 0:03:02.5]} 19. Qd1 {[%clk 0:01:49.9]}
19... f6 {[%clk 0:03:03.3]} 20. Nd3 {[%clk 0:01:50.1]} 20... c4 {[%clk
0:02:53.2]} 21. Nf2 {[%clk 0:01:46.6]} 21... e5 {[%clk 0:02:54.3]} 22. f4 {[%clk
0:01:37.9]} 22... Nf5 {[%clk 0:02:53.9]} 23. Qc1 {[%clk 0:01:29.2]} 23... exd4
{[%clk 0:02:53.3]} 24. Bxd4 {[%clk 0:01:28.1]} 24... Nxd4 {[%clk 0:02:54.5]} 25.
cxd4 {[%clk 0:01:29.4]} 25... Rfe8 {[%clk 0:02:55.6]} 26. Re1 {[%clk 0:01:29]}
26... f5 {[%clk 0:02:43.4]} 27. e3 {[%clk 0:01:27.9]} 27... b5 {[%clk
0:02:44.6]} 28. a3 {[%clk 0:01:21.5]} 28... a5 {[%clk 0:02:45.1]} 29. Qc2 {[%clk
0:01:14.5]} 29... b4 {[%clk 0:02:42.8]} 30. axb4 {[%clk 0:01:15.1]} 30... axb4
{[%clk 0:02:43.5]} 31. g4 {[%clk 0:01:10.8]} 31... b3 {[%clk 0:02:39.2]} 32. Qd2
{[%clk 0:01:09.2]} 32... Ra8 {[%clk 0:02:34.2]} 33. gxf5 {[%clk 0:01:04]} 33...
gxf5 {[%clk 0:02:34.8]} 34. Bh3 {[%clk 0:01:04.7]} 34... Rxa1 {[%clk 0:02:25.4]}
35. Bxf5+ {[%clk 0:00:47.2]} 35... Kg8 {[%clk 0:02:26.1]} 36. Rxa1 {[%clk
0:00:47.1]} 36... Qxe3 {[%clk 0:02:27]} 37. Qb4 {[%clk 0:00:11.1]} 37... Bxd4
{[%clk 0:02:24]} 38. Rf1 {[%clk 0:00:11.5]} 38... Qf3 {[%clk 0:02:16.1]} 39.
Bh7+ {[%clk 0:00:02.5]} 39... Kh8 {[%clk 0:02:16.1]} 0-1

[Event "*** Titled Tuesday Blitz"]
[Site "Chess.com"]
[Date "2019.12.03"]
[Round "7"]
[White "SanchezKelvin"]
[Black "SmirnovAlexandrA"]
[Result "1-0"]
[WhiteElo "2434"]
[BlackElo "2224"]
[TimeControl "180+2"]
[EndTime "14:34:38 PST"]
[Termination "SanchezKelvin won by resignation"]

1. d4 {[%clk 0:03:01.9]} 1... Nf6 {[%clk 0:02:58]} 2. c4 {[%clk 0:03:03.8]} 2...
g6 {[%clk 0:02:57.3]} 3. Nc3 {[%clk 0:03:02.4]} 3... Bg7 {[%clk 0:02:58.1]} 4.
e4 {[%clk 0:03:02.4]} 4... O-O {[%clk 0:02:56.4]} 5. Nf3 {[%clk 0:03:00.6]} 5...
d6 {[%clk 0:02:57.1]} 6. Be2 {[%clk 0:02:56.2]} 6... e5 {[%clk 0:02:57.3]} 7.
dxe5 {[%clk 0:02:55.2]} 7... dxe5 {[%clk 0:02:57.7]} 8. Qxd8 {[%clk 0:02:57.1]}
8... Rxd8 {[%clk 0:02:57.9]} 9. Bg5 {[%clk 0:02:59]} 9... Re8 {[%clk 0:02:54.5]}
10. Nd5 {[%clk 0:02:58.7]} 10... Nxd5 {[%clk 0:02:53.1]} 11. cxd5 {[%clk
0:03:00.6]} 11... c6 {[%clk 0:02:51.4]} 12. Bc4 {[%clk 0:03:01]} 12... cxd5
{[%clk 0:02:50.9]} 13. Bxd5 {[%clk 0:03:02.9]} 13... Nc6 {[%clk 0:02:51.5]} 14.
O-O {[%clk 0:02:47.5]} 14... h6 {[%clk 0:02:44.4]} 15. Be3 {[%clk 0:02:46.6]}
15... Be6 {[%clk 0:02:44.5]} 16. Bxc6 {[%clk 0:02:38.6]} 16... bxc6 {[%clk
0:02:44.2]} 17. Rac1 {[%clk 0:02:37.4]} 17... Bxa2 {[%clk 0:02:42]} 18. Rxc6
{[%clk 0:02:32.5]} 18... Be6 {[%clk 0:02:25.5]} 19. Ra1 {[%clk 0:02:28.5]} 19...
Reb8 {[%clk 0:02:20]} 20. Bc1 {[%clk 0:02:25.4]} 20... a5 {[%clk 0:02:13.7]} 21.
Rc5 {[%clk 0:02:23.1]} 21... a4 {[%clk 0:02:14.4]} 22. Nxe5 {[%clk 0:02:20.7]}
22... Bxe5 {[%clk 0:02:16.3]} 23. Rxe5 {[%clk 0:02:21.1]} 23... Bb3 {[%clk
0:02:02.3]} 24. Bxh6 {[%clk 0:02:19]} 24... Re8 {[%clk 0:02:00.2]} 25. Rxe8+
{[%clk 0:02:19.1]} 25... Rxe8 {[%clk 0:02:02.1]} 26. f3 {[%clk 0:02:20.3]} 26...
Rc8 {[%clk 0:02:01.8]} 27. Bd2 {[%clk 0:02:19.5]} 27... Rc2 {[%clk 0:02:00.4]}
28. Bc3 {[%clk 0:02:21.1]} 28... Kf8 {[%clk 0:01:56]} 29. h4 {[%clk 0:02:16]}
29... Ke7 {[%clk 0:01:56.6]} 30. Kh2 {[%clk 0:02:14.1]} 30... Ke6 {[%clk
0:01:56.9]} 31. Kg3 {[%clk 0:02:14.6]} 31... f5 {[%clk 0:01:56]} 32. exf5+
{[%clk 0:02:15.3]} 32... Kxf5 {[%clk 0:01:57.9]} 33. Bh8 {[%clk 0:01:58]} 33...
Rc8 {[%clk 0:01:54.3]} 34. Bd4 {[%clk 0:01:57.8]} 34... Rc4 {[%clk 0:01:54.2]}
35. Bc3 {[%clk 0:01:56.3]} 35... Rc6 {[%clk 0:01:52.8]} 36. Kf2 {[%clk
0:01:57.2]} 36... Ke6 {[%clk 0:01:48]} 37. g4 {[%clk 0:01:57.7]} 37... Kf7
{[%clk 0:01:48.2]} 38. Ke3 {[%clk 0:01:56.6]} 38... Re6+ {[%clk 0:01:48.3]} 39.
Kf2 {[%clk 0:01:49.5]} 39... Rc6 {[%clk 0:01:46.1]} 40. Be5 {[%clk 0:01:47.4]}
40... Rc2+ {[%clk 0:01:45.3]} 41. Kg3 {[%clk 0:01:47.8]} 41... Re2 {[%clk
0:01:43.7]} 42. Kf4 {[%clk 0:01:47.6]} 42... Rh2 {[%clk 0:01:43.8]} 43. Kg5
{[%clk 0:01:47.8]} 43... Rf2 {[%clk 0:01:43.3]} 44. f4 {[%clk 0:01:45.2]} 44...
Rg2 {[%clk 0:01:44]} 45. h5 {[%clk 0:01:37.7]} 45... gxh5 {[%clk 0:01:42.6]} 46.
Kxh5 {[%clk 0:01:38.8]} 46... Ke6 {[%clk 0:01:32]} 47. Rc1 {[%clk 0:01:35.6]}
47... Kd5 {[%clk 0:01:27.5]} 48. Kg5 {[%clk 0:01:35.4]} 48... Ke4 {[%clk
0:01:24.5]} 49. Rc6 {[%clk 0:01:34.1]} 49... Bd1 {[%clk 0:01:22.9]} 50. Rc4+
{[%clk 0:01:25.8]} 50... Ke3 {[%clk 0:01:19]} 51. f5 {[%clk 0:01:24.9]} 51...
Be2 {[%clk 0:01:13.2]} 52. Rxa4 {[%clk 0:01:24.7]} 1-0

[Event "*** Titled Tuesday Blitz"]
[Site "Chess.com"]
[Date "2019.12.03"]
[Round "7"]
[White "Perecke"]
[Black "LawrenceTrent"]
[Result "0-1"]
[WhiteElo "2182"]
[BlackElo "2678"]
[TimeControl "180+2"]
[EndTime "14:34:42 PST"]
[Termination "LawrenceTrent won by resignation"]

1. e4 {[%clk 0:03:01.9]} 1... c5 {[%clk 0:02:59.5]} 2. Nf3 {[%clk 0:02:46.6]}
2... Nc6 {[%clk 0:02:59.2]} 3. d4 {[%clk 0:02:47.8]} 3... cxd4 {[%clk
0:02:59.3]} 4. Nxd4 {[%clk 0:02:49.7]} 4... Nf6 {[%clk 0:02:54.3]} 5. Nc3 {[%clk
0:02:50.2]} 5... d6 {[%clk 0:02:54.7]} 6. Bg5 {[%clk 0:02:50]} 6... Qb6 {[%clk
0:02:54.4]} 7. Nb3 {[%clk 0:02:32]} 7... e6 {[%clk 0:02:55.1]} 8. Bd3 {[%clk
0:02:23.9]} 8... a6 {[%clk 0:02:54.5]} 9. O-O {[%clk 0:02:21.6]} 9... Be7 {[%clk
0:02:55.3]} 10. Be3 {[%clk 0:02:17.8]} 10... Qc7 {[%clk 0:02:56.1]} 11. Na4
{[%clk 0:02:14.2]} 11... Nd7 {[%clk 0:02:56.1]} 12. f4 {[%clk 0:02:11.8]} 12...
b5 {[%clk 0:02:54.3]} 13. Nc3 {[%clk 0:02:12.2]} 13... Bb7 {[%clk 0:02:54.3]}
14. f5 {[%clk 0:02:12.8]} 14... O-O {[%clk 0:02:52]} 15. Nd4 {[%clk 0:02:06.7]}
15... Nxd4 {[%clk 0:02:48.4]} 16. Bxd4 {[%clk 0:02:08.6]} 16... e5 {[%clk
0:02:08.1]} 17. Be3 {[%clk 0:02:04.9]} 17... Nc5 {[%clk 0:02:08.5]} 18. Nd5
{[%clk 0:01:10.2]} 18... Bxd5 {[%clk 0:02:08.1]} 19. exd5 {[%clk 0:01:12.1]}
19... Bf6 {[%clk 0:02:07.1]} 20. g4 {[%clk 0:01:07.6]} 20... e4 {[%clk 0:02:08]}
21. Be2 {[%clk 0:01:03.6]} 21... Bxb2 {[%clk 0:02:08.5]} 22. Rb1 {[%clk
0:01:04.8]} 22... Be5 {[%clk 0:02:09.8]} 23. Bd4 {[%clk 0:01:01.6]} 23... Rfe8
{[%clk 0:02:08.7]} 24. Bxe5 {[%clk 0:01:00.1]} 24... Rxe5 {[%clk 0:02:09.4]} 25.
f6 {[%clk 0:00:58.4]} 25... g6 {[%clk 0:02:10]} 26. Qd2 {[%clk 0:00:57.9]} 26...
e3 {[%clk 0:02:08.7]} 27. Qe1 {[%clk 0:00:56.1]} 27... h6 {[%clk 0:01:57.5]} 28.
Qh4 {[%clk 0:00:42.9]} 28... Kh7 {[%clk 0:01:57]} 29. Rf5 {[%clk 0:00:25.9]}
29... Rxf5 {[%clk 0:01:32.9]} 30. gxf5 {[%clk 0:00:25.4]} 30... g5 {[%clk
0:01:34.5]} 31. Qh5 {[%clk 0:00:18.5]} 31... Rf8 {[%clk 0:01:32.4]} 32. Rf1
{[%clk 0:00:18.9]} 32... Qd8 {[%clk 0:01:33.1]} 33. Rf3 {[%clk 0:00:11.1]} 33...
Qxf6 {[%clk 0:01:33.7]} 34. Rh3 {[%clk 0:00:12.1]} 34... Nd7 {[%clk 0:01:24.2]}
35. Rxe3 {[%clk 0:00:12.1]} 35... Qd4 {[%clk 0:01:23.6]} 36. Qf3 {[%clk
0:00:05.7]} 36... Re8 {[%clk 0:01:23.3]} 37. Kf2 {[%clk 0:00:07.1]} 37... Nf6
{[%clk 0:01:23.6]} 38. Bd3 {[%clk 0:00:04.5]} 38... Rxe3 {[%clk 0:01:23.5]} 39.
Qxe3 {[%clk 0:00:05.4]} 39... Ng4+ {[%clk 0:01:25]} 0-1

[Event "*** Titled Tuesday Blitz"]
[Site "Chess.com"]
[Date "2019.12.03"]
[Round "7"]
[White "RiskyDecision"]
[Black "Misi_95"]
[Result "1/2-1/2"]
[WhiteElo "2528"]
[BlackElo "2674"]
[TimeControl "180+2"]
[EndTime "14:34:42 PST"]
[Termination "Game drawn by repetition"]

1. d4 {[%clk 0:03:01.9]} 1... Nf6 {[%clk 0:02:59]} 2. c4 {[%clk 0:03:02.3]} 2...
e6 {[%clk 0:02:59.4]} 3. g3 {[%clk 0:03:03.4]} 3... c5 {[%clk 0:02:59.1]} 4. Nf3
{[%clk 0:03:04.3]} 4... d5 {[%clk 0:02:57.5]} 5. Bg2 {[%clk 0:03:03.4]} 5...
cxd4 {[%clk 0:02:56.4]} 6. cxd5 {[%clk 0:03:02.5]} 6... Qxd5 {[%clk 0:02:51.7]}
7. Qxd4 {[%clk 0:02:55.1]} 7... Nc6 {[%clk 0:02:52.2]} 8. Qxd5 {[%clk
0:02:55.6]} 8... Nxd5 {[%clk 0:02:52.7]} 9. O-O {[%clk 0:02:52.3]} 9... Be7
{[%clk 0:02:52.5]} 10. Nbd2 {[%clk 0:02:39]} 10... O-O {[%clk 0:02:52]} 11. Nc4
{[%clk 0:02:36.9]} 11... b5 {[%clk 0:02:48.9]} 12. Nce5 {[%clk 0:02:36.4]} 12...
Nxe5 {[%clk 0:02:49.2]} 13. Nxe5 {[%clk 0:02:36.8]} 13... Bb7 {[%clk 0:02:50.6]}
14. Bd2 {[%clk 0:02:31.8]} 14... Rfd8 {[%clk 0:02:50.6]} 15. Ba5 {[%clk
0:02:25.8]} 15... Rdc8 {[%clk 0:02:50.8]} 16. Rac1 {[%clk 0:02:20.1]} 16... Bf6
{[%clk 0:02:50.8]} 17. Nd3 {[%clk 0:02:15.1]} 17... Be7 {[%clk 0:02:45.1]} 18.
Nb4 {[%clk 0:02:03.6]} 18... f6 {[%clk 0:01:45.1]} 19. Nxd5 {[%clk 0:02:02.4]}
19... Bxd5 {[%clk 0:01:47]} 20. Bxd5 {[%clk 0:02:02.8]} 20... exd5 {[%clk
0:01:48.9]} 21. Bc7 {[%clk 0:01:57.2]} 21... Kf7 {[%clk 0:01:46.3]} 22. Rfd1
{[%clk 0:01:47.8]} 22... Ke6 {[%clk 0:01:44.9]} 23. e3 {[%clk 0:01:15.2]} 23...
a5 {[%clk 0:01:42.9]} 24. Bb6 {[%clk 0:01:01.5]} 24... Rc4 {[%clk 0:01:40]} 25.
b3 {[%clk 0:01:01.5]} 25... Rxc1 {[%clk 0:01:40.6]} 26. Rxc1 {[%clk 0:01:02.2]}
26... a4 {[%clk 0:01:41.9]} 27. bxa4 {[%clk 0:00:54.7]} 27... Rxa4 {[%clk
0:01:41.9]} 28. Rc2 {[%clk 0:00:55.8]} 28... Rc4 {[%clk 0:01:38.5]} 29. Rb2
{[%clk 0:00:53.4]} 29... b4 {[%clk 0:01:39]} 30. Bd4 {[%clk 0:00:54.2]} 30... h5
{[%clk 0:01:39.5]} 31. Kg2 {[%clk 0:00:54]} 31... g5 {[%clk 0:01:38]} 32. h3
{[%clk 0:00:54.9]} 32... Kf5 {[%clk 0:01:38.5]} 33. f3 {[%clk 0:00:45.4]} 33...
g4 {[%clk 0:01:38.4]} 34. fxg4+ {[%clk 0:00:35.8]} 34... hxg4 {[%clk 0:01:40.3]}
35. Rf2+ {[%clk 0:00:37.1]} 35... Kg6 {[%clk 0:01:36]} 36. hxg4 {[%clk
0:00:37.8]} 36... Kg5 {[%clk 0:01:34.6]} 37. Kf3 {[%clk 0:00:27.9]} 37... Rc1
{[%clk 0:01:32.7]} 38. Rh2 {[%clk 0:00:23.3]} 38... Rf1+ {[%clk 0:01:33.1]} 39.
Ke2 {[%clk 0:00:24.5]} 39... Rg1 {[%clk 0:01:32.3]} 40. Kf2 {[%clk 0:00:23.8]}
40... Rc1 {[%clk 0:01:32.3]} 41. Kf3 {[%clk 0:00:19]} 41... Rf1+ {[%clk
0:01:30.2]} 42. Ke2 {[%clk 0:00:18.5]} 42... Rc1 {[%clk 0:01:30.1]} 43. Kf3
{[%clk 0:00:19.4]} 1/2-1/2

[Event "*** Titled Tuesday Blitz"]
[Site "Chess.com"]
[Date "2019.12.03"]
[Round "7"]
[White "Egorov_Pavel"]
[Black "vladimirdamjanovic"]
[Result "0-1"]
[WhiteElo "2371"]
[BlackElo "2578"]
[TimeControl "180+2"]
[EndTime "14:34:57 PST"]
[Termination "vladimirdamjanovic won on time"]

1. d4 {[%clk 0:03:01.7]} 1... Nf6 {[%clk 0:02:59.2]} 2. c4 {[%clk 0:03:03.2]}
2... c5 {[%clk 0:03:00.8]} 3. d5 {[%clk 0:03:04.6]} 3... b5 {[%clk 0:03:01.7]}
4. cxb5 {[%clk 0:03:06.5]} 4... a6 {[%clk 0:03:03.1]} 5. bxa6 {[%clk 0:03:08.4]}
5... d6 {[%clk 0:03:04.2]} 6. Nc3 {[%clk 0:03:10.3]} 6... g6 {[%clk 0:03:05.6]}
7. e4 {[%clk 0:03:12.2]} 7... Bg7 {[%clk 0:03:07.2]} 8. Nf3 {[%clk 0:03:13.8]}
8... Qa5 {[%clk 0:03:05.7]} 9. Bd2 {[%clk 0:03:14.6]} 9... Bxa6 {[%clk
0:03:06.9]} 10. Be2 {[%clk 0:03:16.3]} 10... Bxe2 {[%clk 0:03:07.6]} 11. Qxe2
{[%clk 0:03:18.2]} 11... Qa6 {[%clk 0:03:09.3]} 12. Qxa6 {[%clk 0:03:01.4]}
12... Nxa6 {[%clk 0:03:09.5]} 13. O-O {[%clk 0:03:03.1]} 13... O-O {[%clk
0:03:07.5]} 14. a4 {[%clk 0:03:01]} 14... Nd7 {[%clk 0:03:04.5]} 15. Rfb1 {[%clk
0:02:54.6]} 15... Rfb8 {[%clk 0:02:49.1]} 16. Nb5 {[%clk 0:02:55.2]} 16... Nb4
{[%clk 0:02:14.2]} 17. Ne1 {[%clk 0:02:26.7]} 17... Nb6 {[%clk 0:01:38.4]} 18.
Bxb4 {[%clk 0:01:03.9]} 18... cxb4 {[%clk 0:01:39]} 19. b3 {[%clk 0:01:00.2]}
19... Bxa1 {[%clk 0:01:33.8]} 20. Rxa1 {[%clk 0:01:02]} 20... Nxd5 {[%clk
0:01:18]} 21. Nxd6 {[%clk 0:00:53.4]} 21... exd6 {[%clk 0:00:39.8]} 22. exd5
{[%clk 0:00:48.7]} 22... Ra5 {[%clk 0:00:41.4]} 23. Rd1 {[%clk 0:00:45.2]} 23...
Rc5 {[%clk 0:00:38.8]} 24. h3 {[%clk 0:00:37.9]} 24... Rc3 {[%clk 0:00:28]} 25.
Rb1 {[%clk 0:00:39.1]} 25... Ra8 {[%clk 0:00:27.4]} 26. Kf1 {[%clk 0:00:36.3]}
26... Ra5 {[%clk 0:00:27.8]} 0-1

[Event "*** Titled Tuesday Blitz"]
[Site "Chess.com"]
[Date "2019.12.03"]
[Round "7"]
[White "nitpicker"]
[Black "GoldenShare"]
[Result "0-1"]
[WhiteElo "2295"]
[BlackElo "2464"]
[TimeControl "180+2"]
[EndTime "14:35:07 PST"]
[Termination "GoldenShare won on time"]

1. d4 {[%clk 0:03:01.9]} 1... d5 {[%clk 0:02:59.2]} 2. c4 {[%clk 0:03:01.9]}
2... dxc4 {[%clk 0:02:59.6]} 3. e4 {[%clk 0:02:58.6]} 3... b5 {[%clk 0:02:52.9]}
4. Nf3 {[%clk 0:02:53.4]} 4... Bb7 {[%clk 0:02:52.8]} 5. a4 {[%clk 0:02:35]}
5... a6 {[%clk 0:02:42.2]} 6. axb5 {[%clk 0:02:30.1]} 6... axb5 {[%clk
0:02:44.1]} 7. Rxa8 {[%clk 0:02:30.7]} 7... Bxa8 {[%clk 0:02:46]} 8. b3 {[%clk
0:02:26.2]} 8... Nf6 {[%clk 0:02:39.5]} 9. e5 {[%clk 0:02:23.8]} 9... Ne4 {[%clk
0:02:34.5]} 10. bxc4 {[%clk 0:02:12.9]} 10... bxc4 {[%clk 0:02:29.6]} 11. Bxc4
{[%clk 0:02:11.8]} 11... e6 {[%clk 0:02:30.3]} 12. O-O {[%clk 0:01:46.8]} 12...
Be7 {[%clk 0:02:30.7]} 13. Be3 {[%clk 0:01:29.8]} 13... O-O {[%clk 0:02:24.2]}
14. Qc2 {[%clk 0:01:24.3]} 14... Nd7 {[%clk 0:02:07.5]} 15. Bd3 {[%clk
0:01:22.1]} 15... f5 {[%clk 0:02:08.7]} 16. exf6 {[%clk 0:01:18.9]} 16... Ndxf6
{[%clk 0:02:09.7]} 17. Nbd2 {[%clk 0:01:11.7]} 17... Nxd2 {[%clk 0:01:58]} 18.
Nxd2 {[%clk 0:01:02.9]} 18... Bd6 {[%clk 0:01:50.4]} 19. Ne4 {[%clk 0:00:57.8]}
19... Nxe4 {[%clk 0:01:48.1]} 20. Bxe4 {[%clk 0:00:44]} 20... Qh4 {[%clk
0:01:48.4]} 21. f4 {[%clk 0:00:42.8]} 21... Bxe4 {[%clk 0:01:29.9]} 22. Qxe4
{[%clk 0:00:40.8]} 22... Qf6 {[%clk 0:01:31.8]} 23. Rf2 {[%clk 0:00:34.2]} 23...
Qf5 {[%clk 0:01:28.2]} 24. Qxf5 {[%clk 0:00:28.6]} 24... exf5 {[%clk 0:01:29.5]}
25. Rc2 {[%clk 0:00:25.1]} 25... Kf7 {[%clk 0:01:27.3]} 26. Kf2 {[%clk
0:00:25.9]} 26... Ke6 {[%clk 0:01:28.4]} 27. Kf3 {[%clk 0:00:24]} 27... Kd5
{[%clk 0:01:29.2]} 28. Ra2 {[%clk 0:00:23.2]} 28... Rb8 {[%clk 0:01:22.6]} 29.
Ra5+ {[%clk 0:00:19.3]} 29... Ke6 {[%clk 0:01:23.8]} 30. h3 {[%clk 0:00:16.6]}
30... Rb3 {[%clk 0:01:22.5]} 31. g4 {[%clk 0:00:16.2]} 31... g6 {[%clk
0:01:22.5]} 32. Ra8 {[%clk 0:00:13.5]} 32... Ba3 {[%clk 0:00:54.8]} 33. Kf2
{[%clk 0:00:13.3]} 33... Kd5 {[%clk 0:00:52.8]} 34. Re8 {[%clk 0:00:07.8]} 34...
Kc4 {[%clk 0:00:49.7]} 35. Rc8 {[%clk 0:00:02.2]} 35... Bd6 {[%clk 0:00:47.8]}
0-1

[Event "*** Titled Tuesday Blitz"]
[Site "Chess.com"]
[Date "2019.12.03"]
[Round "7"]
[White "aquaticpineapples"]
[Black "VeraNebolsina"]
[Result "0-1"]
[WhiteElo "2220"]
[BlackElo "2359"]
[TimeControl "180+2"]
[EndTime "14:35:07 PST"]
[Termination "VeraNebolsina won by resignation"]

1. d4 {[%clk 0:02:34.4]} 1... Nf6 {[%clk 0:02:59.6]} 2. Nf3 {[%clk 0:02:35]}
2... g6 {[%clk 0:03:00.5]} 3. Nbd2 {[%clk 0:02:36.1]} 3... Bg7 {[%clk
0:02:59.9]} 4. e4 {[%clk 0:02:37.2]} 4... d6 {[%clk 0:03:00.7]} 5. Bd3 {[%clk
0:02:38.3]} 5... O-O {[%clk 0:03:00.2]} 6. O-O {[%clk 0:02:39.3]} 6... b6 {[%clk
0:02:33]} 7. a4 {[%clk 0:02:38]} 7... a6 {[%clk 0:02:30.4]} 8. a5 {[%clk
0:02:37.2]} 8... b5 {[%clk 0:02:30.7]} 9. c4 {[%clk 0:02:32.4]} 9... bxc4 {[%clk
0:02:24]} 10. Nxc4 {[%clk 0:02:28.9]} 10... Bb7 {[%clk 0:02:24.4]} 11. Qc2
{[%clk 0:02:26.5]} 11... Nc6 {[%clk 0:02:19.8]} 12. Bd2 {[%clk 0:02:21.3]} 12...
Nd7 {[%clk 0:02:08.5]} 13. Bc3 {[%clk 0:02:12.7]} 13... e5 {[%clk 0:01:59.2]}
14. dxe5 {[%clk 0:02:08]} 14... Ndxe5 {[%clk 0:01:51.9]} 15. Ncxe5 {[%clk
0:02:02.1]} 15... Nxe5 {[%clk 0:01:34.2]} 16. Nxe5 {[%clk 0:02:01]} 16... Bxe5
{[%clk 0:01:34.6]} 17. Bxe5 {[%clk 0:01:51.8]} 17... dxe5 {[%clk 0:01:35]} 18.
Rfc1 {[%clk 0:01:42.9]} 18... c5 {[%clk 0:01:09]} 19. Qe2 {[%clk 0:01:27.9]}
19... Qd4 {[%clk 0:01:05.7]} 20. Rc4 {[%clk 0:01:24.3]} 20... Qd6 {[%clk
0:01:02.1]} 21. Rac1 {[%clk 0:01:21.5]} 21... Rfd8 {[%clk 0:01:02.1]} 22. Bb1
{[%clk 0:01:13]} 22... Bc6 {[%clk 0:00:55.5]} 23. Rxc5 {[%clk 0:01:09.4]} 23...
Bb5 {[%clk 0:00:56]} 24. Qe3 {[%clk 0:01:03.6]} 24... Qd1+ {[%clk 0:00:45.8]}
25. Qe1 {[%clk 0:01:04.1]} 25... Qb3 {[%clk 0:00:46.6]} 26. R5c2 {[%clk
0:00:40.7]} 26... Kg7 {[%clk 0:00:40.1]} 27. Qc3 {[%clk 0:00:32.6]} 27... Qe6
{[%clk 0:00:37.4]} 28. f4 {[%clk 0:00:24.7]} 28... Rd4 {[%clk 0:00:32.7]} 29.
Rf2 {[%clk 0:00:17.6]} 29... Rad8 {[%clk 0:00:32.5]} 30. h3 {[%clk 0:00:16.9]}
30... Qd6 {[%clk 0:00:23.6]} 31. fxe5 {[%clk 0:00:16.4]} 31... Qxe5 {[%clk
0:00:24.7]} 32. Rd1 {[%clk 0:00:15.3]} 32... Rxd1+ {[%clk 0:00:24.9]} 0-1

[Event "*** Titled Tuesday Blitz"]
[Site "Chess.com"]
[Date "2019.12.03"]
[Round "7"]
[White "GCamachoMartinez"]
[Black "Heineccius"]
[Result "1-0"]
[WhiteElo "2459"]
[BlackElo "2631"]
[TimeControl "180+2"]
[EndTime "14:35:09 PST"]
[Termination "GCamachoMartinez won by resignation"]

1. d4 {[%clk 0:03:01.9]} 1... Nf6 {[%clk 0:03:00.3]} 2. c4 {[%clk 0:03:02.9]}
2... e6 {[%clk 0:03:01.5]} 3. Nf3 {[%clk 0:03:02.4]} 3... Bb4+ {[%clk
0:03:01.9]} 4. Bd2 {[%clk 0:03:02.3]} 4... a5 {[%clk 0:03:02.8]} 5. g3 {[%clk
0:03:02.6]} 5... d6 {[%clk 0:03:03.8]} 6. Bg2 {[%clk 0:03:03.7]} 6... Nbd7
{[%clk 0:03:04.8]} 7. O-O {[%clk 0:03:04.7]} 7... e5 {[%clk 0:03:05.7]} 8. dxe5
{[%clk 0:03:05.1]} 8... dxe5 {[%clk 0:03:02.6]} 9. Bxb4 {[%clk 0:02:54]} 9...
axb4 {[%clk 0:03:02.1]} 10. Nfd2 {[%clk 0:02:39.2]} 10... O-O {[%clk 0:02:57.4]}
11. Nb3 {[%clk 0:02:38.5]} 11... Qe7 {[%clk 0:02:54]} 12. N1d2 {[%clk
0:02:35.8]} 12... c6 {[%clk 0:02:50.1]} 13. Qc2 {[%clk 0:02:36]} 13... Nc5
{[%clk 0:02:42.9]} 14. Nxc5 {[%clk 0:02:33.7]} 14... Qxc5 {[%clk 0:02:44.1]} 15.
Nb3 {[%clk 0:02:35.6]} 15... Qe7 {[%clk 0:02:45.5]} 16. Nd2 {[%clk 0:01:42.9]}
16... Be6 {[%clk 0:02:35.3]} 17. b3 {[%clk 0:01:43.3]} 17... Ra5 {[%clk
0:02:29.8]} 18. Rfd1 {[%clk 0:01:41.8]} 18... Rfa8 {[%clk 0:02:27.2]} 19. Nf1
{[%clk 0:01:42.6]} 19... Nd7 {[%clk 0:02:12.9]} 20. Ne3 {[%clk 0:01:41.9]} 20...
g6 {[%clk 0:02:12.6]} 21. Qd2 {[%clk 0:01:26.9]} 21... Kf8 {[%clk 0:01:56.1]}
22. h4 {[%clk 0:01:21.6]} 22... Nf6 {[%clk 0:01:46.4]} 23. Qc2 {[%clk
0:00:57.2]} 23... Kg7 {[%clk 0:01:44.3]} 24. Rd2 {[%clk 0:00:58.1]} 24... Qc5
{[%clk 0:01:42.2]} 25. Qd1 {[%clk 0:00:57.8]} 25... e4 {[%clk 0:01:22.8]} 26.
Kh2 {[%clk 0:00:56.8]} 26... Qe5 {[%clk 0:01:17.5]} 27. Bh3 {[%clk 0:00:55.3]}
27... Bxh3 {[%clk 0:01:14.6]} 28. Kxh3 {[%clk 0:00:57.2]} 28... Ra3 {[%clk
0:00:50.8]} 29. Kg2 {[%clk 0:00:56.4]} 29... Rxb3 {[%clk 0:00:44.1]} 30. Qxb3
{[%clk 0:00:57.3]} 30... Qxa1 {[%clk 0:00:44.4]} 31. Qxb4 {[%clk 0:00:58.2]}
31... Qe1 {[%clk 0:00:23.6]} 32. Qb2 {[%clk 0:00:48.5]} 32... Re8 {[%clk
0:00:18.3]} 33. Rd6 {[%clk 0:00:45.9]} 33... Re6 {[%clk 0:00:17.4]} 34. Rxe6
{[%clk 0:00:46.9]} 34... fxe6 {[%clk 0:00:19.3]} 35. Ng4 {[%clk 0:00:48.2]} 1-0